[Event "4NCL 2022-2023"]
[Site "Daventry"]
[Date "2023.03.19"]
[Round "8.4"]
[White "Harvey, Marcus R"]
[Black "Kirk, Ezra"]
[Result "0-1"]
[ECO "A15"]
[WhiteElo "2471"]
[BlackElo "2427"]
[Annotator "TA"]
[PlyCount "142"]
[EventDate "2022.10.20"]
[EventType "team-tourn"]
[EventCountry "ENG"]
[SourceTitle "playchess.com"]
[Source "ChessBase"]
[SourceQuality "1"]
[TimeControl "40/6000+30:2400+30"]

{[%evp 9,142,-6,15,8,9,11,16,9,25,15,14,11,10,10,10,0,18,13,6,7,40,8,33,19,34,-1,0,0,0,0,0,0,0,13,39,35,44,65,37,0,0,-7,40,45,33,0,2,-85,-76,-75,-43,-44,-47,-123,-116,-97,-91,-184,-181,-174,-168,-171,-168,-200,-186,-167,-172,-174,-162,-172,-163,-156,0,-145,-132,-153,-122,-123,-130,-181,-181,-188,-171,-177,-168,-182,-168,-167,-159,-273,-269,-291,-193,-192,-181,-181,-160,-162,-152,-312,-308,-304,-304,-298,-298,-290,-277,-279,-275,-409,-389,-324,-329,-409,-389,-410,-382,-320,-270,-251,-254,-272,-293,-264,0,-325,-317,-304,-278,-675,-750,-504,-453,-29998,-29999]} 1. c4 {[%emt 0:07:01]} Nf6 {[%emt 0:00:08]} 2. Nf3 {[%emt 0:00:03]} g6 {[%emt 0:00:40]} 3. b3 {[%emt 0:00:02]} Bg7 {[%emt 0:00:12]} 4. Bb2 {[%emt 0:00:06]} O-O {[%emt 0:00:40]} 5. g3 {[%emt 0:00:21]} b6 {[%emt 0:12:22]} 6. Bg2 {[%emt 0:00:04] A15: English Opening: 1...Nf6.} Bb7 {[%emt 0:00:05]} 7. d4 {[%emt 0:00:24]} e6 {[%emt 0:01:24]} 8. O-O {[%emt 0:00:08] The position is equal.} Ne4 {[%emt 0:01:46]} 9. Qc2 {[%emt 0:05:39]} f5 {[%emt 0:07:59]} 10. Rd1 {[%emt 0:01:37] [#]} d6 $146 {[%emt 0:07:28]} ({Predecessor:} 10... Qe7 11. Ne1 Nc6 12. a3 e5 13. dxe5 Nxe5 14. Nd3 Ng4 15. Re1 f4 16. Bf3 fxg3 17. hxg3 Nxg3 18. Bxb7 Qh4 19. Bd5+ Kh8 20. Bxg7+ Kxg7 21. Qc3+ Kh6 {0-1 Kurajica,B (2512)-Bukal,V (2381) CRO-chT1A 29th 2021 (5.1)}) 11. Nfd2 {[%emt 0:01:19][%cal Rd2e4]} d5 {[%emt 0:01:17]} 12. Nc3 {[%emt 0:08:29]} Nd7 {[%emt 0:04:42]} (12... Bxd4 $2 13. Ndxe4 dxe4 14. e3 $18) 13. Rac1 {[%emt 0:01:35]} c6 {[%emt 0:01:15]} 14. e3 {[%emt 0:08:15]} g5 {[%emt 0:05:08]} 15. f3 {[%emt 0:05:28]} Nxd2 {[%emt 0:10:19]} 16. Qxd2 {[%emt 0:00:34]} Qe7 {[%emt 0:03:01]} 17. e4 {[%emt 0:09:09] Threatens to win with cxd5.} dxe4 {[%emt 0:02:59]} 18. fxe4 {[%emt 0:00:40]} f4 {[%emt 0:00:11]} 19. gxf4 {[%emt 0:00:18]} gxf4 {[%emt 0:00:26]} 20. Kh1 {[%emt 0:11:17]} Rad8 {[%emt 0:06:53][%cal Od7e5]} 21. Qf2 {[%emt 0:00:55]} c5 {[%emt 0:02:08]} 22. d5 {[%emt 0:00:39]} Bd4 {[%emt 0:02:18]} 23. Rxd4 {[%emt 0:00:30]} cxd4 {[%emt 0:00:08]} 24. Qxd4 {[%emt 0:01:58] aiming for dxe6.} (24. Nb5 $5 {[%cal Rb5d4]} e5 25. Rg1 $14) 24... e5 $36 {[%emt 0:02:34][%mdl 2048] White is under pressure.} 25. Qf2 {[%emt 0:08:34]} Nf6 {[%emt 0:03:54]} (25... Rf7 $11 {is more appropriate.}) 26. Bf3 {[%emt 0:02:14]} Bc8 {[%emt 0:05:00]} 27. c5 {[%emt 0:00:28]} bxc5 {[%emt 0:01:13]} 28. Ba3 {[%emt 0:01:07]} (28. Na4 $11 Rf7 29. Nxc5) 28... Rf7 $1 $17 {[%emt 0:03:02]} (28... Bg4 29. Rg1 (29. Bxc5 $2 Bxf3+ 30. Kg1 Qg7+ 31. Kf1 Nxe4 $19) 29... h5 30. Bxc5 $14 (30. Qxc5 Qxc5 31. Bxc5 Rc8 $17)) 29. Bxc5 {[%emt 0:01:28]} Qd7 {[%emt 0:01:23]} 30. Qh4 {[%emt 0:00:18] Hoping for Qg5+.} Qh3 {[%emt 0:05:13]} 31. Rg1+ {[%emt 0:02:23]} (31. Qxh3 $15 Bxh3 32. Nb5) 31... Rg7 {[%emt 0:04:13] Some like it hot} 32. Qxh3 {[%emt 0:07:02]} (32. Qxf6 $2 Qxf3+) 32... Bxh3 {[%emt 0:01:39]} 33. Be7 {[%emt 0:08:46] [#]} (33. Nb5 $17 {was necessary.}) 33... Bg4 $1 $19 {[%emt 0:01:25]} 34. Bxg4 {[%emt 0:00:06]} (34. Bxd8 Bxf3+) (34. Rxg4 $2 Nxg4 35. Bxg4 Rxe7 $19) 34... Rxe7 {[%emt 0:00:53]} 35. Bf5+ {[%emt 0:02:18]} Kh8 {[%emt 0:03:21]} 36. Nb5 {[%emt 0:01:38]} Ne8 {[%emt 0:02:17]} 37. Be6 {[%emt 0:03:28][%csl Ge6][%cal Rg1g8]} Rg7 {[%emt 0:01:16] Wards off Rg8+} 38. Nxa7 {[%emt 0:04:32] [#]} Ra8 $1 {[%emt 0:03:20]} 39. Nc6 {[%emt 0:04:52]} Rxa2 {[%emt 0:00:38]} 40. Nxe5 {[%emt 0:01:03]} Rxg1+ {[%emt 0:03:28]} 41. Kxg1 {[%emt 0:40:20][%mdl 4096] Endgame KRN-KBN} Nd6 {[%emt 0:00:00]} 42. Nd3 {[%emt 0:00:00]} Nxe4 {[%emt 0:10:35]} 43. Nxf4 {[%emt 0:00:00]} Rb2 {[%emt 0:00:45] Black is more active.} 44. Bf5 {[%emt 0:00:00]} (44. Nh5 $17) 44... Nd6 {[%emt 0:01:14]} 45. Bd3 {[%emt 0:00:00]} Rxb3 {[%emt 0:01:46]} 46. Kf2 {[%emt 0:00:00]} Rb2+ {[%emt 0:03:14]} 47. Kg3 {[%emt 0:00:00]} h6 {[%emt 0:00:50]} 48. h3 {[%emt 0:00:00]} Kg7 {[%emt 0:00:36]} 49. Be2 {[%emt 0:00:00]} (49. Nh5+ $17 Kf7 50. Kf4) 49... Kf6 {[%emt 0:00:55] ...Nf5+ would be deadly.} 50. Bg4 {[%emt 0:00:00]} Rb3+ {[%emt 0:01:23]} 51. Kh4 {[%emt 0:00:00] [#]} Rb4 $1 {[%emt 0:02:34]} 52. Ne6 {[%emt 0:00:00]} Nf7 {[%emt 0:04:23]} 53. Kh5 {[%emt 0:00:00]} Re4 {[%emt 0:01:46]} 54. Nc7 $2 {[%emt 0:00:00]} (54. Kh4 $17 {is a better defense.}) 54... Re5+ {[%emt 0:00:59]} 55. Kh4 {[%emt 0:00:00]} Nd6 {[%emt 0:00:26] And now ...Rg5 would win.} 56. Kg3 {[%emt 0:00:00]} Re4 {[%emt 0:04:16]} 57. Ne6 {[%emt 0:00:00]} Nf5+ {[%emt 0:02:47]} 58. Kf3 {[%emt 0:00:00]} Ke5 {[%emt 0:02:44]} 59. Nc5 {[%emt 0:00:00]} (59. Kg2 $142) 59... Re3+ {[%emt 0:00:43]} ({Avoid the trap} 59... Rf4+ $2 60. Ke2 Kxd5 61. Nd3 Nd4+ 62. Ke3 Re4+ 63. Kf2 $19) 60. Kf2 {[%emt 0:00:00]} Rc3 {[%emt 0:00:44]} (60... Kxd5 $2 {too greedy.} 61. Bxf5 Re5 62. Bd7 Kxc5 63. Kg3 $19) 61. Nd7+ {[%emt 0:00:00]} Kf4 {[%emt 0:00:38]} ({Stronger than} 61... Kxd5 62. Bxf5 Kd6 63. Bg4 $11) 62. Nf6 {[%emt 0:00:00]} Rc2+ {[%emt 0:00:16]} 63. Ke1 {[%emt 0:00:00]} Nd6 {[%emt 0:00:44]} 64. Be6 {[%emt 0:00:00]} Rh2 {[%emt 0:01:58]} 65. Ng8 {[%emt 0:00:00]} Kg5 {[%emt 0:01:22]} 66. Ne7 {[%emt 0:00:00]} Kf4 $2 {[%emt 0:02:20]} (66... Ne4 $19 {White must now prevent ...h5.} 67. Nc6 Kf6) 67. Bg4 $2 {[%emt 0:00:00][%mdl 8192] [#]} (67. Ng8 $1 $11 {and White has nothing to worry.}) 67... h5 $1 {[%emt 0:01:21][%mdl 512]} 68. Be6 {[%emt 0:00:44]} Ne4 {[%emt 0:01:29]} 69. Ng6+ $2 {[%emt 0:02:47]} (69. Bc8) 69... Ke3 {[%emt 0:00:18][%cal Rh2h1]} 70. Kd1 {[%emt 0:00:24]} Nc5 {[%emt 0:02:00] ( -> ...Nd3)} 71. Bf7 {[%emt 0:06:45]} (71. Nh4 $19) 71... Nd3 {[%emt 0:00:48] Excellently played by Kirk!   Weighted Error Value: White=0.23 (precise) /Black=0.05 (flawless)} 0-1

[Event "4NCL 2022-2023"]
[Site "Daventry"]
[Date "2023.03.19"]
[Round "8.5"]
[White "Williams, Simon K"]
[Black "Toma, Katarzyna"]
[Result "1-0"]
[ECO "E60"]
[WhiteElo "2465"]
[BlackElo "2231"]
[Annotator "TA"]
[PlyCount "55"]
[EventDate "2022.10.20"]
[EventType "team-tourn"]
[EventCountry "ENG"]
[SourceTitle "playchess.com"]
[Source "ChessBase"]
[SourceQuality "1"]
[TimeControl "40/6000+30:2400+30"]

{[%evp 9,55,12,32,24,43,33,57,36,53,49,75,85,91,81,48,-52,65,0,0,0,0,2,23,-7,76,68,73,72,218,58,217,221,222,217,215,221,214,218,205,186,217,208,210,185,191,183,184,151]} 1. d4 {[%emt 0:01:55]} Nf6 {[%emt 0:02:32]} 2. c4 {[%emt 0:00:17]} g6 {[%emt 0:00:23]} 3. h4 {[%emt 0:00:13]} Bg7 {[%emt 0:01:54]} 4. Nc3 {[%emt 0:00:23]} d5 {[%emt 0:00:35]} 5. h5 {[%emt 0:00:42]} Nxh5 {[%emt 0:03:52]} 6. cxd5 {[%emt 0:00:21] E60: King's Indian: Unusual lines and Fianchetto Variation without Nc3.} c6 {[%emt 0:03:46]} 7. e4 {[%emt 0:00:14][%cal Be2e4,Be4e5][%mdl 32]} cxd5 {[%emt 0:04:02]} 8. e5 {[%emt 0:00:06] White is slightly better.} (8. exd5 $6 O-O $11) (8. Nxd5 Nc6 $11) 8... Bf8 $1 {[%emt 0:07:29]} 9. Nf3 {[%emt 0:00:43]} Ng7 {[%emt 0:07:49]} 10. Qb3 {[%emt 0:12:03]} Nc6 {[%emt 0:06:31]} 11. Qxd5 {[%emt 0:04:42]} (11. Nxd5 Be6 12. Bc4 (12. Qxb7 $2 Bxd5 13. Bb5 Qc8 $19) 12... Nf5 $11) 11... Bg4 {[%emt 0:04:33] [#] ...Qxd5 is the strong threat.} 12. Qb3 $146 {[%emt 0:17:36]} (12. Ng5 $14 Qxd5 13. Nxd5) ({Predecessor:} 12. Qb5 Qd7 13. d5 Bxf3 14. gxf3 Nxe5 15. Qe2 f6 16. f4 Nf7 17. Ne4 O-O-O 18. Bg2 {0-1 Palliser,R (2413)-Kolani,A (1913) BCF-chT 2122 (4NCL) 2021 (7.65)}) 12... Qb6 {[%emt 0:16:20]} (12... Bxf3 $15 13. gxf3 Nxd4) 13. Be3 {[%emt 0:15:39]} (13. Qxb6 $14 axb6 14. Be3) 13... Qxb3 $1 $11 {[%emt 0:04:34]} 14. axb3 {[%emt 0:00:05] Threatens to win with d5.} Bxf3 {[%emt 0:01:10]} 15. gxf3 {[%emt 0:00:04] With the idea d5.} e6 {[%emt 0:01:13]} 16. Bb5 {[%emt 0:04:16]} Be7 {[%emt 0:03:59]} (16... Nf5 $11 {keeps the balance.}) 17. d5 $16 {[%emt 0:00:29] White is much more active.} exd5 {[%emt 0:02:20]} 18. Nxd5 {[%emt 0:00:05]} (18. Rxa7 Rxa7 19. Bxa7 Kd7 $11) 18... Ne6 {[%emt 0:05:38] [#] Repels Nc7+} (18... Bd8 $16 {is a better defense.}) 19. Rc1 $2 {[%emt 0:02:34]} (19. Bxa7 Kf8 20. Bxc6 bxc6 21. Nxe7 Kxe7 $11) (19. Rxa7 Rxa7 20. Bxa7 h5 $14) (19. Nb6 $1 $18 {[%cal Rb6a8]} Rd8 20. Rxa7) 19... Rd8 {[%emt 0:05:31] [#]} ({Black should try} 19... Rc8 $14) 20. Rxc6 $1 $18 {[%emt 0:01:08] White is clearly better.} (20. Bxc6+ bxc6 21. Nxe7 Kxe7 $11) 20... bxc6 {[%emt 0:02:12]} 21. Bxc6+ {[%emt 0:00:04]} Rd7 {[%emt 0:02:45]} 22. Bxa7 {[%emt 0:09:30]} ({Much less strong is} 22. Bxd7+ $6 Kxd7 23. Ke2 (23. Bxa7 h5 $16) 23... a5 $16) 22... Kd8 {[%emt 0:01:39]} 23. Bb6+ {[%emt 0:00:52]} ({Don't do} 23. Bxd7 $6 Kxd7 24. Ke2 h5 $16) 23... Kc8 {[%emt 0:00:10]} 24. O-O {[%emt 0:01:10] Black must now prevent Ra1.} ({Resist} 24. Bxd7+ $6 Kxd7 25. f4 h5 $16) 24... Rxd5 {[%emt 0:05:22]} 25. Bxd5 {[%emt 0:00:10] Strongly threatening Rc1+. This pair of bishops is nice.} Kd7 {[%emt 0:01:19]} 26. Ra1 {[%emt 0:08:24] aiming for Ra7+.} Rb8 {[%emt 0:01:00]} 27. Ra7+ {[%emt 0:00:49]} Ke8 {[%emt 0:00:39]} 28. Be3 {[%emt 0:00:21] Weighted Error Value: White=0.26 (precise) /Black=0.37} 1-0

[Event "4NCL 2022-2023"]
[Site "Daventry"]
[Date "2023.03.19"]
[Round "8.6"]
[White "Haydon, David L"]
[Black "Eggleston, David J"]
[Result "1/2-1/2"]
[ECO "E11"]
[WhiteElo "2268"]
[BlackElo "2364"]
[Annotator "TA"]
[PlyCount "30"]
[EventDate "2022.10.20"]
[EventType "team-tourn"]
[EventCountry "ENG"]
[SourceTitle "playchess.com"]
[Source "ChessBase"]
[SourceQuality "1"]
[TimeControl "40/6000+30:2400+30"]

{[%evp 9,30,12,17,2,8,8,33,7,21,0,3,0,-3,-15,5,8,8,8,20,3,33,22,39]} 1. d4 {[%emt 0:07:00]} e6 {[%emt 0:00:35]} 2. c4 {[%emt 0:00:12]} Nf6 {[%emt 0:00:06]} 3. Nf3 {[%emt 0:00:05]} Bb4+ {[%emt 0:00:11]} 4. Bd2 {[%emt 0:01:03]} Bxd2+ {[%emt 0:00:24]} 5. Nbxd2 {[%emt 0:00:21]} d6 {[%emt 0:02:45]} 6. Qc2 {[%emt 0:04:40][%cal Og2g4] E11: Bogo-Indian.} O-O {[%emt 0:03:28]} 7. e3 {[%emt 0:01:56]} b6 {[%emt 0:00:46]} 8. Bd3 {[%emt 0:01:49] White is slightly better.} Bb7 {[%emt 0:00:56]} 9. O-O {[%emt 0:00:53]} c5 {[%emt 0:01:34]} 10. dxc5 {[%emt 0:06:26]} bxc5 {[%emt 0:07:43] [#]} 11. Ne4 $146 {[%emt 0:01:22]} ({Predecessor:} 11. Rad1 Qe7 12. Ng5 h6 13. Nge4 Nxe4 14. Nxe4 f5 15. Nd2 Qg5 16. e4 Qg6 17. f3 {½-½ Vaitsiakhouski,Y (1466)-Ishikawa,T Wch U12 Maribor 2012 (7.82)}) 11... Nxe4 {[%emt 0:02:13]} 12. Bxe4 {[%emt 0:00:32]} Bxe4 {[%emt 0:00:40]} 13. Qxe4 {[%emt 0:00:17]} Nd7 {[%emt 0:00:11]} 14. Rfd1 {[%emt 0:06:23]} Nb6 {[%emt 0:00:51]} 15. b3 {[%emt 0:03:17]} d5 {[%emt 0:01:41] Weighted Error Value: White=0.11 (very precise) /Black=0.10 (very precise)} 1/2-1/2

[Event "4NCL 2022-2023"]
[Site "Daventry"]
[Date "2023.03.19"]
[Round "8.7"]
[White "Arkell, Keith C"]
[Black "Fitzsimons, David"]
[Result "1/2-1/2"]
[ECO "A30"]
[WhiteElo "2404"]
[BlackElo "2342"]
[Annotator "TA"]
[PlyCount "47"]
[EventDate "2022.10.20"]
[EventType "team-tourn"]
[EventCountry "ENG"]
[SourceTitle "playchess.com"]
[Source "ChessBase"]
[SourceQuality "1"]
[TimeControl "40/6000+30:2400+30"]

{[%evp 15,47,21,25,22,23,19,27,22,21,22,31,23,29,10,18,0,0,0,35,35,22,0,31,0,0,-15,-5,-8,0,0,0,0,0,0]} 1. c4 {[%emt 0:03:12]} Nf6 {[%emt 0:06:24]} 2. Nf3 {[%emt 0:00:06]} c5 {[%emt 0:00:14]} 3. g3 {[%emt 0:00:21]} b6 {[%emt 0:00:25]} 4. Bg2 {[%emt 0:00:05]} Bb7 {[%emt 0:00:06]} 5. O-O {[%emt 0:00:14]} e6 {[%emt 0:00:04]} 6. Nc3 {[%emt 0:00:39]} Be7 {[%emt 0:00:16]} 7. Re1 {[%emt 0:00:26]} d5 {[%emt 0:00:17]} 8. cxd5 {[%emt 0:00:05]} Nxd5 $1 {[%emt 0:00:07] 8...Nxd5 scores better than 8...exd5.} 9. Nxd5 {[%emt 0:00:38] A30: Symmetrical English: Double Fianchetto and Hedgehog.} Bxd5 {[%emt 0:02:02]} 10. e4 {[%emt 0:00:38]} Bb7 {[%emt 0:00:14]} 11. d4 {[%emt 0:00:30] White has an edge.} cxd4 {[%emt 0:00:20]} 12. Nxd4 {[%emt 0:03:29]} O-O {[%emt 0:00:44]} 13. Be3 {[%emt 0:06:28]} Nd7 {[%emt 0:02:21][%cal Bb8d7,Bd7c5,Bc5d3][%mdl 32]} 14. Rc1 {[%emt 0:06:26]} Rc8 {[%emt 0:06:49] [#]} 15. Rxc8 $146 {[%emt 0:13:11]} ({Predecessor:} 15. Qe2 Rxc1 16. Rxc1 Bc5 17. Rd1 Qe7 18. a3 a5 19. Qb5 Nb8 20. Nc2 Rd8 21. Qe2 {0-1 Andonov,B (2380)-Kholmov,R (2485) Frunze 1989}) 15... Qxc8 {[%emt 0:00:14]} 16. Qa4 {[%emt 0:08:17] [#] Rc1 is the strong threat.} a6 {[%emt 0:09:47]} 17. Rc1 {[%emt 0:01:46]} Nc5 {[%emt 0:00:29]} 18. Qd1 {[%emt 0:01:18] Threatens to win with b4.} (18. Qc2 $5 {[%cal Rb2b4]}) 18... Qd7 {[%emt 0:09:05]} 19. Qc2 {[%emt 0:09:41]} (19. Nb3 $5 {[%cal Rd1d7]}) 19... Rc8 {[%emt 0:03:16][%cal Oc5e4] The position is equal.} 20. Qb1 {[%emt 0:00:30]} (20. e5 $5 {[%cal Rg2b7]} Nb3 21. Qxb3 Rxc1+ 22. Bxc1 Bxg2 23. Kxg2 (23. Qxb6 Bh3 $17) 23... Qxd4 24. Be3 Qxe5 25. Bxb6 $11) 20... Bf6 {[%emt 0:04:48]} 21. Ne2 {[%emt 0:04:08]} Qd3 {[%emt 0:06:06]} 22. Qxd3 {[%emt 0:00:34]} Nxd3 {[%emt 0:00:05]} 23. Rxc8+ {[%emt 0:00:10]} Bxc8 {[%emt 0:00:05]} 24. b3 {[%emt 0:06:20] A rather calm draw.   Weighted Error Value: White=0.09 (flawless) /Black=0.08 (flawless)} 1/2-1/2

[Event "4NCL 2022-2023"]
[Site "Daventry"]
[Date "2023.03.19"]
[Round "8.8"]
[White "O`Gorman, Tom"]
[Black "Steil-Antoni, Fiona"]
[Result "1-0"]
[ECO "D35"]
[WhiteElo "2357"]
[BlackElo "2195"]
[Annotator "TA"]
[PlyCount "79"]
[EventDate "2022.10.20"]
[EventType "team-tourn"]
[EventCountry "ENG"]
[SourceTitle "playchess.com"]
[Source "ChessBase"]
[SourceQuality "1"]
[TimeControl "40/6000+30:2400+30"]

{[%evp 17,79,17,37,18,27,0,14,8,24,29,24,0,0,-9,29,0,42,0,37,37,52,51,70,69,70,70,76,70,77,66,74,72,90,77,67,56,89,89,134,124,122,121,134,124,186,102,105,98,130,6,12,10,156,77,171,163,769,751,964,968,1023,1015,976,935]} 1. d4 {[%emt 0:00:02]} d5 {[%emt 0:02:07]} 2. c4 {[%emt 0:00:09]} e6 {[%emt 0:00:13]} 3. Nc3 {[%emt 0:00:10]} Be7 {[%emt 0:00:25]} 4. cxd5 {[%emt 0:00:07]} exd5 {[%emt 0:00:14]} 5. Bf4 {[%emt 0:00:09]} Nf6 {[%emt 0:00:35]} 6. e3 {[%emt 0:00:09]} c6 {[%emt 0:00:13]} 7. Bd3 {[%emt 0:00:08]} O-O {[%emt 0:00:24]} 8. Qc2 {[%emt 0:03:53]} Re8 {[%emt 0:01:54] is the legacy move (8...Nbd7).} 9. Nf3 {[%emt 0:00:55]} Nbd7 {[%emt 0:02:24][%cal Bb8d7,Bd7f8,Bf8g6][%mdl 32]} 10. a3 {[%emt 0:13:21] D35: Queen's Gambit Declined: Exchange Variation.} Nf8 {[%emt 0:01:27]} 11. O-O {[%emt 0:04:57]} Ng6 {[%emt 0:01:07]} 12. Bg5 {[%emt 0:00:53] The position is equal.} Ne4 {[%emt 0:04:33][%mdl 64] Discovered Attack} 13. Bxe7 {[%emt 0:08:24]} (13. Nxe4 $2 dxe4 14. Bxe4 (14. Bxe7 $2 Qxe7 15. Bxe4 Qxe4 $19) 14... Bxg5 $19) 13... Qxe7 {[%emt 0:00:11]} 14. b4 {[%emt 0:04:33] [#]} Nxc3 $146 {[%emt 0:05:57]} ({Predecessor:} 14... a6 15. Rab1 Bg4 16. Bxe4 dxe4 17. Nd2 Bf5 18. Rfe1 Nh4 19. d5 Qg5 20. g3 Nf3+ 21. Nxf3 exf3 {0-1 Geletzke,H (1561)-Weimert,M (1710) GER-chT U14 Girls 2016 (4.1)}) 15. Qxc3 {[%emt 0:00:09]} a6 {[%emt 0:01:34]} (15... Bg4 $5 {[%cal Rg4f3]} 16. Nd2 Qg5 $11) 16. Qc2 {[%emt 0:13:36]} Bd7 {[%emt 0:05:22]} (16... Bg4 $5 {[%cal Rg4f3]}) 17. Rab1 {[%emt 0:10:00]} Reb8 {[%emt 0:12:07]} (17... Bg4 $5 {[%cal Rg4f3]}) 18. a4 {[%emt 0:05:58]} Qd6 {[%emt 0:03:04]} 19. Rfc1 {[%emt 0:04:47]} Be8 {[%emt 0:04:33]} 20. Nd2 {[%emt 0:04:24]} Nf8 {[%emt 0:10:03]} 21. Nb3 {[%emt 0:04:33]} h6 {[%emt 0:01:01]} 22. Nc5 {[%emt 0:00:21]} Ne6 {[%emt 0:05:30]} 23. Bh7+ {[%emt 0:01:02]} Kh8 {[%emt 0:00:49] [#] aiming for ...g6.} 24. Bf5 {[%emt 0:00:06]} Nf8 {[%emt 0:03:13]} 25. g3 {[%emt 0:02:35] Black is weak on the dark squares} g6 {[%emt 0:03:35]} 26. Bh3 {[%emt 0:01:26]} f5 {[%emt 0:05:11]} 27. Bf1 {[%emt 0:01:58]} Qf6 {[%emt 0:05:33]} 28. b5 {[%emt 0:02:33] White is much more active. The black rooks are badly placed.} axb5 {[%emt 0:00:37]} 29. axb5 {[%emt 0:00:07]} Ne6 {[%emt 0:05:52]} 30. Nd3 {[%emt 0:01:02]} g5 {[%emt 0:04:50]} (30... Ng5 $16 {was called for.} 31. bxc6 bxc6 32. Rxb8 Rxb8) 31. f4 {[%emt 0:05:15]} (31. bxc6 $18 bxc6 32. Rxb8 Rxb8 33. Ra1) 31... gxf4 $16 {[%emt 0:01:17]} 32. gxf4 {[%emt 0:00:05]} Bh5 {[%emt 0:13:09]} 33. Ne5 {[%emt 0:01:43]} ({Better is} 33. Kh1 $16) 33... Rg8+ $11 {[%emt 0:00:37]} 34. Kh1 $1 {[%emt 0:00:48]} (34. Bg2 c5 35. Qf2 (35. dxc5 d4 $17) 35... cxd4 $15) 34... Rg7 {[%emt 0:02:26]} (34... Qg7 $2 35. Bh3 (35. Qxf5 $2 Qg1#) 35... Qf6 36. Qxf5 Qxf5 37. Bxf5 $18) (34... c5 $1 $11) 35. Bh3 {[%emt 0:07:49]} ({Much less strong is} 35. bxc6 bxc6 36. Bh3 (36. Qxc6 $2 {too greedy.} Rag8 $19) 36... Rf8) (35. Be2 $142 Bxe2 36. Qxe2) 35... Rf8 {[%emt 0:01:32]} (35... c5 $16) 36. Rg1 $36 {[%emt 0:01:08][%mdl 2048] Black is under strong pressure.} Qh4 $2 {[%emt 0:02:47]} (36... Be8 37. bxc6 Rxg1+ 38. Kxg1 bxc6) 37. Bxf5 {[%emt 0:00:54] White is clearly winning.} Rxg1+ {[%emt 0:01:53]} 38. Rxg1 {[%emt 0:00:08]} Nxd4 {[%emt 0:00:32]} 39. exd4 {[%emt 0:00:20]} Qxf4 {[%emt 0:00:03] [#]} 40. Qg2 $1 {[%emt 0:00:51] Weighted Error Value: White=0.21 (precise) /Black=0.28 (precise)} 1-0